fUST/lending_fUST_20251120
["ID","MTS","AMOUNT","RATE_DAILY","PERIOD"]
[394432810,1763568000956,-14.38155286,0.00012765,2]
[394432811,1763568000982,-165.89874413,0.00012765,2]
[394432812,1763568004399,-170.0,0.00012764,2]
[394432813,1763568004427,-207.03683551,0.00012765,2]
[394432814,1763568005162,5600.01,0.00012637,2]
[394432815,1763568005192,10000.01,0.00012637,2]
[394432816,1763568005229,35709.476646,0.00012637,2]
[394432817,1763568006606,-156.82555523,0.00012764,2]
[394432818,1763568009169,-143.17444477,0.00012764,2]
[394432819,1763568009196,-11.19942879,0.00012764,2]
[394432820,1763568010901,-311.45121328,0.00012764,2]
[394432821,1763568013324,-165.11096082,0.00012764,2]
[394432822,1763568013684,1188.80057121,0.00012636,2]
[394432823,1763568021539,712.23839711,0.00012636,2]
[394432824,1763568031429,712.23839711,0.00012636,2]
[394432825,1763568038939,415.83,0.00040618,20]
[394432826,1763568039236,712.23839711,0.00012636,2]
[394432827,1763568055681,712.23839711,0.00012636,2]
[394432828,1763568064990,712.23839711,0.00012636,2]
[394432829,1763568079954,1012.23839711,0.00012636,2]
[394432830,1763568087824,1012.23839711,0.00012636,2]
[394432831,1763568095739,163.34719887,0.00040618,20]
[394432832,1763568103504,1012.23839711,0.00012636,2]
[394432833,1763568111315,1012.23839711,0.00012636,2]
[394432834,1763568126206,1003.94715438,0.00040618,120]
[394432835,1763568126548,1012.23839711,0.00012636,2]
[394432836,1763568134356,300.0,0.00012635,2]
[394432837,1763568138592,165.5,0.00040618,20]
[394432838,1763568149613,300.0,0.00012635,2]
[394432839,1763568157402,300.0,0.00012635,2]
[394432840,1763568172771,300.0,0.00012635,2]
[394432841,1763568179430,-300.0,0.00012763,2]
[394432842,1763568179460,-500.0,0.00012763,2]
[394432843,1763568179489,-500.0,0.00012763,2]
[394432844,1763568179521,-500.0,0.00012763,2]
[394432845,1763568179557,-500.0,0.00012763,2]
[394432846,1763568179596,-500.0,0.00012763,2]
[394432847,1763568179628,-500.0,0.00012763,2]
[394432848,1763568179662,-500.0,0.00012763,2]
[394432849,1763568179697,-500.0,0.00012763,2]
[394432850,1763568179728,-500.0,0.00012763,2]
[394432851,1763568179962,-500.0,0.00012763,2]
[394432852,1763568179995,-500.0,0.00012763,2]
[394432853,1763568180026,-500.0,0.00012763,2]
[394432854,1763568180060,-500.0,0.00012763,2]
[394432855,1763568180093,-500.0,0.00012763,2]
[394432856,1763568180138,-500.0,0.00012763,2]
[394432857,1763568180172,-500.0,0.00012763,2]
[394432858,1763568180207,-500.0,0.00012763,2]
[394432859,1763568180240,-500.0,0.00012763,2]
[394432860,1763568180275,-500.0,0.00012763,2]
[394432861,1763568180403,-500.0,0.00012763,2]
[394432862,1763568180438,-500.0,0.00012763,2]
[394432863,1763568180474,-500.0,0.00012763,2]
[394432864,1763568180506,-500.0,0.00012763,2]
[394432865,1763568180547,-500.0,0.00012763,2]
[394432866,1763568180586,-500.0,0.00012763,2]
[394432867,1763568180622,-500.0,0.00012763,2]
[394432868,1763568180659,-500.0,0.00012763,2]
[394432869,1763568180691,-500.0,0.00012763,2]
[394432870,1763568180728,-500.0,0.00012763,2]
[394432871,1763568180771,-500.0,0.00012763,2]
[394432872,1763568180802,-500.0,0.00012763,2]
[394432873,1763568180832,-500.0,0.00012763,2]
[394432874,1763568180862,-500.0,0.00012763,2]
[394432875,1763568180900,-500.0,0.00012763,2]
[394432876,1763568180933,-500.0,0.00012763,2]
[394432877,1763568180969,-500.0,0.00012763,2]
[394432878,1763568181001,-500.0,0.00012763,2]
[394432879,1763568181034,-500.0,0.00012763,2]
[394432880,1763568181072,-500.0,0.00012763,2]
[394432881,1763568181324,-500.0,0.00012763,2]
[394432882,1763568181357,-500.0,0.00012763,2]
[394432883,1763568181394,-500.0,0.00012763,2]
[394432884,1763568181431,-500.0,0.00012763,2]
[394432885,1763568181462,-346.46495188,0.00012763,2]
[394432886,1763568181493,-500.0,0.00012763,2]
[394432887,1763568181525,-500.0,0.00012763,2]
[394432888,1763568181563,-500.0,0.00012763,2]
[394432889,1763568181594,-500.0,0.00012763,2]
[394432890,1763568181627,-500.0,0.00012763,2]
[394432891,1763568181753,-500.0,0.00012763,2]
[394432892,1763568181792,-500.0,0.00012763,2]
[394432893,1763568181824,-500.0,0.00012763,2]
[394432894,1763568181860,-500.0,0.00012763,2]
[394432895,1763568181898,-500.0,0.00012763,2]
[394432896,1763568181930,-500.0,0.00012763,2]
[394432897,1763568181965,-500.0,0.00012763,2]
[394432898,1763568181997,-270.55626477,0.00012763,2]
[394432899,1763568182029,-500.0,0.00012763,2]
[394432900,1763568182065,-500.0,0.00012763,2]
[394432901,1763568182226,-500.0,0.00012763,2]
[394432902,1763568182263,-500.0,0.00012763,2]
[394432903,1763568182299,-500.0,0.00012763,2]
[394432904,1763568182338,-500.0,0.00012763,2]
[394432905,1763568182373,-500.0,0.00012763,2]
[394432906,1763568182412,-500.0,0.00012763,2]
[394432907,1763568182444,-500.0,0.00012763,2]
[394432908,1763568182479,-500.0,0.00012763,2]
[394432909,1763568182510,-500.0,0.00012763,2]
[394432910,1763568182545,-500.0,0.00012763,2]
[394432911,1763568182611,300.0,0.00012635,2]
[394432912,1763568182711,-500.0,0.00012763,2]
[394432913,1763568182748,-500.0,0.00012763,2]
[394432914,1763568182783,-500.0,0.00012763,2]
[394432915,1763568182815,-540.22047174,0.00012763,2]
[394432916,1763568182850,-500.0,0.00012763,2]
[394432917,1763568182910,-500.0,0.00012763,2]
[394432918,1763568182952,-500.0,0.00012763,2]
[394432919,1763568182986,-500.0,0.00012763,2]
[394432920,1763568183028,-500.0,0.00012763,2]
[394432921,1763568183069,-419.56905652,0.00012763,2]
[394432922,1763568183211,-80.43094348,0.00012763,2]
[394432923,1763568183251,-500.0,0.00012763,2]
[394432924,1763568183290,-500.0,0.00012763,2]
[394432925,1763568183328,-414.51947851,0.00012763,2]
[394432926,1763568183366,-500.0,0.00012763,2]
[394432927,1763568183405,-500.0,0.00012763,2]
[394432928,1763568183443,-500.0,0.00012763,2]
[394432929,1763568183578,-500.0,0.00012763,2]
[394432930,1763568183615,-500.0,0.00012763,2]
[394432931,1763568183655,-500.0,0.00012763,2]
[394432932,1763568183694,-500.0,0.00012763,2]
[394432933,1763568183860,-500.0,0.00012763,2]
[394432934,1763568183903,-500.0,0.00012763,2]
[394432935,1763568183941,-500.0,0.00012763,2]
[394432936,1763568183979,-500.0,0.00012763,2]
[394432937,1763568184020,-500.0,0.00012763,2]
[394432938,1763568184062,-500.0,0.00012763,2]
[394432939,1763568184103,-500.0,0.00012763,2]
[394432940,1763568184143,-500.0,0.00012763,2]
[394432941,1763568184177,-500.0,0.00012763,2]
[394432942,1763568184212,-500.0,0.00012763,2]
[394432943,1763568184753,153.79,5e-05,2]
[394432944,1763568185104,153.79,7.5e-05,2]
[394432945,1763568185607,153.79,0.0001,2]
[394432946,1763568185762,-500.0,0.00012763,2]
[394432947,1763568185796,-500.0,0.00012763,2]
[394432948,1763568185830,-500.0,0.00012763,2]
[394432949,1763568185863,-500.0,0.00012763,2]
[394432950,1763568185898,-500.0,0.00012763,2]
[394432951,1763568185930,-500.0,0.00012763,2]
[394432952,1763568185963,-500.0,0.00012763,2]
[394432953,1763568185996,-500.0,0.00012763,2]
[394432954,1763568186027,-500.0,0.00012763,2]
[394432955,1763568186058,-500.0,0.00012763,2]
[394432956,1763568186167,-500.0,0.00012763,2]
[394432957,1763568186201,-500.0,0.00012763,2]
[394432958,1763568186235,-500.0,0.00012763,2]
[394432959,1763568186267,-500.0,0.00012763,2]
[394432960,1763568186300,-500.0,0.00012763,2]
[394432961,1763568186333,-500.0,0.00012763,2]
[394432962,1763568186366,-500.0,0.00012763,2]
[394432963,1763568186400,-500.0,0.00012763,2]
[394432964,1763568186433,-500.0,0.00012763,2]
[394432965,1763568186467,-500.0,0.00012763,2]
[394432966,1763568186971,328.55228236,0.00012663,2]
[394432967,1763568194458,-500.0,0.00012763,2]
[394432968,1763568194493,-500.0,0.00012763,2]
[394432969,1763568194527,-500.0,0.00012763,2]
[394432970,1763568194565,-500.0,0.00012763,2]
[394432971,1763568194597,-500.0,0.00012763,2]
[394432972,1763568194633,-649.99999999,0.00012763,2]
[394432973,1763568194673,-500.0,0.00012763,2]
[394432974,1763568194706,-500.0,0.00012763,2]
[394432975,1763568194739,-500.0,0.00012763,2]
[394432976,1763568194776,-200.01000002,0.00012763,2]
[394432977,1763568195039,-299.98999998,0.00012763,2]
[394432978,1763568195075,-500.0,0.00012763,2]
[394432979,1763568195111,-500.0,0.00012763,2]
[394432980,1763568195146,-550.00000001,0.00012763,2]
[394432981,1763568195182,-500.0,0.00012763,2]
[394432982,1763568195219,-500.0,0.00012763,2]
[394432983,1763568195257,-500.0,0.00012763,2]
[394432984,1763568195294,-500.0,0.00012763,2]
[394432985,1763568195327,-469.6547813,0.00012764,2]
[394432986,1763568195359,-178.7583469,0.00012764,2]
[394432987,1763568195394,-290.96534651,0.00012764,2]
[394432988,1763568195581,-421.2730506,0.00012764,2]
[394432989,1763568195611,-208.34860952,0.00012764,2]
[394432990,1763568196419,5796.29037968,0.00012635,2]
[394432991,1763568201814,-2309.49708383,0.00012765,2]
[394432992,1763568201847,-10000.01,0.00012765,2]
[394432993,1763568201980,-10000.01,0.00012765,2]
[394432994,1763568203484,8975.56985076,0.00012637,2]
[394432995,1763568203738,-10000.01,0.00012765,2]
[394432996,1763568203851,-10000.01,0.00012765,2]
[394432997,1763568204009,-2309.54708383,0.00012765,2]
[394432998,1763568204036,-5380.91583234,0.00012765,2]
[394432999,1763568204181,-435.9585697,0.00012766,2]
[394433000,1763568204225,-9128.0928606,0.00012768,2]
[394433001,1763568204325,-10000.01,0.00012768,2]
[394433002,1763568204462,-10000.01,0.00012768,2]
[394433003,1763568204616,-10000.01,0.00012768,2]
[394433004,1763568209897,-10000.01,0.00012768,2]
[394433005,1763568210141,-10000.01,0.00012768,2]
[394433006,1763568210316,-10000.01,0.00012768,2]
[394433007,1763568215919,-10000.01,0.00012768,2]
[394433008,1763568216043,-10000.01,0.00012768,2]
[394433009,1763568216204,-10000.01,0.00012768,2]
[394433010,1763568216338,-10000.01,0.00012768,2]
[394433011,1763568216476,-10000.01,0.00012768,2]
[394433012,1763568216613,-10000.01,0.00012768,2]
[394433013,1763568217977,227.53588212,0.00040618,120]
[394433014,1763568218421,227.53588212,0.00040618,120]
[394433015,1763568218804,227.53588212,0.00040618,120]
[394433016,1763568219315,227.53588212,0.00040618,120]
[394433017,1763568219500,-10000.01,0.00012768,2]
[394433018,1763568219617,-10000.01,0.00012768,2]
[394433019,1763568219689,227.53588212,0.00040618,120]
[394433020,1763568219851,-10000.01,0.00012768,2]
[394433021,1763568220014,-10000.01,0.00012768,2]
[394433022,1763568220194,227.53588212,0.00040618,120]
[394433023,1763568220578,227.53588212,0.00040618,120]
[394433024,1763568220980,227.53588212,0.00040618,120]
[394433025,1763568233481,1386.14642788,0.00012635,2]
[394433026,1763568236498,518.5,0.00012329,2]
[394433027,1763568241466,6570.0,0.00012635,2]
[394433028,1763568241607,507.35,5e-05,2]
[394433029,1763568241881,507.35,5.2e-05,2]
[394433030,1763568242166,507.35,5.3e-05,2]
[394433031,1763568242441,507.35,5.5e-05,2]
[394433032,1763568242720,507.35,5.6e-05,2]
[394433033,1763568243026,507.35,5.8e-05,2]
[394433034,1763568243410,507.35,5.9e-05,2]
[394433035,1763568243705,507.35,6.1e-05,2]
[394433036,1763568244688,507.35,6.2e-05,2]
[394433037,1763568245009,507.35,6.4e-05,2]
[394433038,1763568245405,507.35,6.5e-05,2]
[394433039,1763568245719,507.35,6.7e-05,2]
[394433040,1763568246098,507.35,6.8e-05,2]
[394433041,1763568246996,507.35,7e-05,2]
[394433042,1763568247036,697.32,0.00012329,2]
[394433043,1763568247340,507.35,7.1e-05,2]
[394433045,1763568247774,507.35,7.3e-05,2]
[394433046,1763568248085,507.35,7.4e-05,2]
[394433047,1763568248524,507.35,7.6e-05,2]
[394433048,1763568248887,507.35,7.7e-05,2]
[394433049,1763568249193,507.35,7.9e-05,2]
[394433050,1763568249433,6570.0,0.00012635,2]
[394433051,1763568249547,507.35,8e-05,2]
[394433052,1763568249906,507.35,8.2e-05,2]
[394433053,1763568250317,507.35,8.3e-05,2]
[394433054,1763568250605,507.35,8.5e-05,2]
[394433055,1763568250900,507.35,8.7e-05,2]
[394433056,1763568251184,507.35,8.8e-05,2]
[394433057,1763568251466,507.35,9e-05,2]
[394433058,1763568251858,507.35,9.1e-05,2]
[394433059,1763568252142,507.35,9.3e-05,2]
[394433060,1763568252422,507.35,9.4e-05,2]
[394433061,1763568252716,507.35,9.6e-05,2]
[394433062,1763568253062,507.35,9.7e-05,2]
[394433063,1763568253404,507.35,9.9e-05,2]
[394433064,1763568253726,507.35,0.0001,2]
[394433065,1763568253977,185.42548979,0.00012673,2]
[394433066,1763568254020,507.35,0.000102,2]
[394433067,1763568254295,507.35,0.000103,2]
[394433068,1763568254620,507.35,0.000105,2]
[394433069,1763568254986,507.35,0.000106,2]
[394433070,1763568255267,507.35,0.000108,2]
[394433071,1763568255696,507.35,0.000109,2]
[394433072,1763568255847,507.35,0.000111,2]
[394433073,1763568256150,507.35,0.000112,2]
[394433074,1763568256449,507.35,0.000114,2]
[394433075,1763568256758,507.35,0.000115,2]
[394433076,1763568257044,507.35,0.000117,2]
[394433077,1763568257330,507.35,0.000118,2]
[394433078,1763568257649,507.35,0.00012,2]
[394433079,1763568258015,507.35,0.000121,2]
[394433080,1763568258295,734.2759536,0.00012635,2]
[394433081,1763568258365,507.35,0.000123,2]
[394433082,1763568258677,507.35,0.000125,2]
[394433083,1763568266298,27911.97733396,0.00012635,2]
[394433084,1763568271342,976.84,0.00040618,30]
[394433085,1763568274157,4483.69600054,0.00012635,2]
[394433086,1763568297704,277.29303875,0.00040618,120]
[394433087,1763568302319,544.64,5e-05,2]
[394433088,1763568302636,544.64,5.2e-05,2]
[394433089,1763568303066,544.64,5.3e-05,2]
[394433090,1763568303374,544.64,5.5e-05,2]
[394433091,1763568303678,544.64,5.6e-05,2]
[394433092,1763568304090,544.64,5.8e-05,2]
[394433093,1763568304418,544.64,5.9e-05,2]
[394433094,1763568304716,544.64,6.1e-05,2]
[394433095,1763568305010,544.64,6.2e-05,2]
[394433096,1763568305353,544.64,6.4e-05,2]
[394433097,1763568305604,544.64,6.5e-05,2]
[394433098,1763568305914,544.64,6.7e-05,2]
[394433099,1763568306349,544.64,6.8e-05,2]
[394433100,1763568306904,544.64,7e-05,2]
[394433101,1763568307423,544.64,7.1e-05,2]
[394433102,1763568308403,544.64,7.3e-05,2]
[394433103,1763568308782,544.64,7.4e-05,2]
[394433104,1763568309091,544.64,7.6e-05,2]
[394433105,1763568309384,544.64,7.7e-05,2]
[394433106,1763568309679,544.64,7.9e-05,2]
[394433107,1763568309967,544.64,8e-05,2]
[394433108,1763568310287,544.64,8.2e-05,2]
[394433109,1763568310584,544.64,8.3e-05,2]
[394433110,1763568310871,544.64,8.5e-05,2]
[394433111,1763568311184,544.64,8.7e-05,2]
[394433112,1763568311542,544.64,8.8e-05,2]
[394433113,1763568311876,544.64,9e-05,2]
[394433114,1763568312262,544.64,9.1e-05,2]
[394433115,1763568312599,544.64,9.3e-05,2]
[394433116,1763568312868,544.64,9.4e-05,2]
[394433117,1763568313187,544.64,9.6e-05,2]
[394433118,1763568313506,544.64,9.7e-05,2]
[394433119,1763568313796,544.64,9.9e-05,2]
[394433120,1763568314088,544.64,0.0001,2]
[394433121,1763568314528,544.64,0.000102,2]
[394433122,1763568314705,544.64,0.000103,2]
[394433123,1763568315014,544.64,0.000105,2]
[394433124,1763568315330,544.64,0.000106,2]
[394433125,1763568315606,544.64,0.000108,2]
[394433126,1763568315896,544.64,0.000109,2]
[394433127,1763568316219,544.64,0.000111,2]
[394433128,1763568316500,544.64,0.000112,2]
[394433129,1763568316780,544.64,0.000114,2]
[394433130,1763568317083,544.64,0.000115,2]
[394433131,1763568317431,544.64,0.000117,2]
[394433132,1763568317708,544.64,0.000118,2]
[394433133,1763568318004,544.64,0.00012,2]
[394433134,1763568318310,544.64,0.000121,2]
[394433135,1763568318597,544.64,0.000123,2]
[394433136,1763568318889,544.64,0.000125,2]
[394433137,1763568424799,300.0,0.0001276,2]
[394433138,1763568457153,169.58026849,0.00040602,20]
[394433139,1763568467785,179.34680861,0.00040602,20]
[394433140,1763568468849,1200.0,0.0001276,2]
[394433141,1763568486636,300.0,0.0001276,2]
[394433142,1763568525318,210.99,0.00017901,30]
[394433143,1763568548461,300.0,0.00012759,2]
[394433144,1763568601749,277.0,0.00012759,2]
[394433145,1763568605392,300.0,0.00012759,2]
[394433146,1763568607074,1200.0,0.00012759,2]
[394433147,1763568617061,890000.0,0.00012662,2]
[394433148,1763568618358,250.0,0.00040579,120]
[394433149,1763568618960,250.0,0.00040579,120]
[394433191,1763568632467,336.55900712,0.00012759,2]
[394433217,1763568632737,-452.89601,0.0001276,2]
[394433219,1763568632748,-47.10399,0.0001276,2]
[394433221,1763568632758,-500.0,0.0001276,2]
[394433223,1763568632767,-500.0,0.0001276,2]
[394433225,1763568632777,-500.0,0.0001276,2]
[394433227,1763568632786,-989.87757222,0.0001276,2]
[394433229,1763568632795,-316.27388354,0.0001276,2]
[394433231,1763568632805,-500.0,0.0001276,2]
[394433233,1763568632815,-500.0,0.0001276,2]
[394433236,1763568632824,-989.87757222,0.0001276,2]
[394433238,1763568632834,-181.04813362,0.0001276,2]
[394433240,1763568632843,-989.87757222,0.0001276,2]
[394433243,1763568632852,-500.0,0.0001276,2]
[394433245,1763568632861,-500.0,0.0001276,2]
[394433246,1763568632870,-500.0,0.0001276,2]
[394433247,1763568632879,-989.87757222,0.0001276,2]
[394433249,1763568632888,-500.0,0.0001276,2]
[394433250,1763568632898,-500.0,0.0001276,2]
[394433251,1763568632906,-989.87757222,0.0001276,2]
[394433252,1763568632916,-500.0,0.0001276,2]
[394433253,1763568632925,-500.0,0.0001276,2]
[394433254,1763568632934,-989.87757222,0.0001276,2]
[394433255,1763568632943,-989.87757222,0.0001276,2]
[394433256,1763568632952,-500.0,0.0001276,2]
[394433257,1763568632961,-500.0,0.0001276,2]
[394433258,1763568632970,-500.0,0.0001276,2]
[394433260,1763568632981,-989.87757222,0.0001276,2]
[394433261,1763568632991,-500.0,0.0001276,2]
[394433263,1763568633000,-500.0,0.0001276,2]
[394433265,1763568633009,-500.0,0.0001276,2]
[394433267,1763568633019,-450.77613498,0.0001276,2]
[394433269,1763568633028,-500.0,0.0001276,2]
[394433271,1763568633038,-500.0,0.0001276,2]
[394433273,1763568633047,-500.0,0.0001276,2]
[394433275,1763568633056,-989.87757222,0.0001276,2]
[394433277,1763568633066,-500.0,0.0001276,2]
[394433279,1763568633075,-500.0,0.0001276,2]
[394433281,1763568633085,-500.0,0.0001276,2]
[394433284,1763568633095,-280.07780686,0.0001276,2]
[394433286,1763568633106,-709.79976536,0.0001276,2]
[394433288,1763568633115,-73.75341193,0.0001276,2]
[394433292,1763568635813,50000.0,0.0001276,2]
[394433311,1763568638992,-426.24658807,0.0001276,2]
[394433313,1763568639002,-500.0,0.0001276,2]
[394433315,1763568639012,-989.87757222,0.0001276,2]
[394433317,1763568639022,-500.0,0.0001276,2]
[394433319,1763568639031,-989.87757222,0.0001276,2]
[394433322,1763568639041,-500.0,0.0001276,2]
[394433324,1763568639050,-989.87757222,0.0001276,2]
[394433325,1763568639059,-989.87757222,0.0001276,2]
[394433327,1763568639068,-989.87757222,0.0001276,2]
[394433329,1763568639078,-989.87757222,0.0001276,2]
[394433331,1763568639087,-989.87757222,0.0001276,2]
[394433333,1763568639096,-989.87757222,0.0001276,2]
[394433336,1763568639106,-989.87757222,0.0001276,2]
[394433338,1763568639115,-989.87757222,0.0001276,2]
[394433340,1763568639124,-989.87757222,0.0001276,2]
[394433342,1763568639134,-989.87757222,0.0001276,2]
[394433344,1763568639143,-989.87757222,0.0001276,2]
[394433346,1763568639153,-989.87757222,0.0001276,2]
[394433348,1763568639163,-500.0,0.0001276,2]
[394433350,1763568639173,-500.0,0.0001276,2]
[394433352,1763568639183,-500.0,0.0001276,2]
[394433354,1763568639193,-500.0,0.0001276,2]
[394433357,1763568639202,-500.0,0.0001276,2]
[394433358,1763568639212,-500.0,0.0001276,2]
[394433361,1763568639221,-1848.23476564,0.0001276,2]
[394433362,1763568639233,-500.0,0.0001276,2]
[394433364,1763568639242,-500.0,0.0001276,2]
[394433366,1763568639252,-1848.23476564,0.0001276,2]
[394433369,1763568639263,-500.0,0.0001276,2]
[394433370,1763568639272,-500.0,0.0001276,2]
[394433372,1763568639282,-500.0,0.0001276,2]
[394433374,1763568639291,-1848.23476564,0.0001276,2]
[394433377,1763568639301,-650.0,0.0001276,2]
[394433379,1763568639310,-1848.23476564,0.0001276,2]
[394433380,1763568639319,-200.0,0.0001276,2]
[394433382,1763568639329,-500.0,0.0001276,2]
[394433384,1763568639338,-1848.23476564,0.0001276,2]
[394433386,1763568639347,-500.0,0.0001276,2]
[394433388,1763568639358,-1848.23476564,0.0001276,2]
[394433401,1763568639472,-500.0,0.0001276,2]
[394433403,1763568639483,-1848.23476564,0.0001276,2]
[394433405,1763568639493,-500.0,0.0001276,2]
[394433407,1763568639504,-500.0,0.0001276,2]
[394433409,1763568639515,-1848.23476564,0.0001276,2]
[394433411,1763568639525,-1848.23476564,0.0001276,2]
[394433413,1763568639535,-1848.23476564,0.0001276,2]
[394433415,1763568639545,-500.0,0.0001276,2]
[394433417,1763568639555,-1848.23476564,0.0001276,2]
[394433419,1763568639566,-1848.23476564,0.0001276,2]
[394433421,1763568639575,-1848.23476564,0.0001276,2]
[394433423,1763568639584,-1848.23476564,0.0001276,2]
[394433425,1763568639594,-1848.23476564,0.0001276,2]
[394433427,1763568639604,-1848.23476564,0.0001276,2]
[394433430,1763568639613,-1848.23476564,0.0001276,2]
[394433431,1763568639623,-1848.23476564,0.0001276,2]
[394433434,1763568639632,-1848.23476564,0.0001276,2]
[394433436,1763568639642,-1848.23476564,0.0001276,2]
[394433438,1763568639651,-1848.23476564,0.0001276,2]
[394433440,1763568639661,-1848.23476564,0.0001276,2]
[394433442,1763568639671,-1848.23476564,0.0001276,2]
[394433444,1763568639681,-1848.23476564,0.0001276,2]
[394433446,1763568639692,-1848.23476564,0.0001276,2]
[394433447,1763568639702,-500.0,0.0001276,2]
[394433449,1763568639712,-500.0,0.0001276,2]
[394433452,1763568639722,-1867.68986844,0.0001276,2]
[394433454,1763568639735,-1867.68986844,0.0001276,2]
[394433456,1763568639745,-1867.68986844,0.0001276,2]
[394433458,1763568639755,-1867.68986844,0.0001276,2]
[394433460,1763568639765,-1867.68986844,0.0001276,2]
[394433461,1763568639776,-1867.68986844,0.0001276,2]
[394433464,1763568639787,-1867.68986844,0.0001276,2]
[394433465,1763568639797,-1867.68986844,0.0001276,2]
[394433468,1763568639808,-1867.68986844,0.0001276,2]
[394433470,1763568639818,-1867.68986844,0.0001276,2]
[394433472,1763568639829,-1867.68986844,0.0001276,2]
[394433473,1763568639839,-1867.68986844,0.0001276,2]
[394433475,1763568639848,-1867.68986844,0.0001276,2]
[394433477,1763568639858,-1867.68986844,0.0001276,2]
[394433479,1763568639868,-1867.68986844,0.0001276,2]
[394433481,1763568639878,-1867.68986844,0.0001276,2]
[394433483,1763568639888,-1867.68986844,0.0001276,2]
[394433485,1763568639897,-1846.46611994,0.0001276,2]
[394433487,1763568639908,-1846.46611994,0.0001276,2]
[394433489,1763568639917,-1846.46611994,0.0001276,2]
[394433491,1763568639927,-1846.46611994,0.0001276,2]
[394433493,1763568639936,-1846.46611994,0.0001276,2]
[394433495,1763568639946,-1846.46611994,0.0001276,2]
[394433497,1763568639955,-1846.46611994,0.0001276,2]
[394433499,1763568639964,-1846.46611994,0.0001276,2]
[394433502,1763568639975,-1846.46611994,0.0001276,2]
[394433504,1763568639990,-1846.46611994,0.0001276,2]
[394433505,1763568639999,-1846.46611994,0.0001276,2]
[394433508,1763568640009,-1846.46611994,0.0001276,2]
[394433510,1763568640018,-1846.46611994,0.0001276,2]
[394433514,1763568640028,-1846.46611994,0.0001276,2]
[394433515,1763568640037,-1846.46611994,0.0001276,2]
[394433517,1763568640048,-1846.46611993,0.0001276,2]
[394433519,1763568640058,-1846.46611993,0.0001276,2]
[394433521,1763568640067,-1846.46611993,0.0001276,2]
[394433523,1763568640077,-1846.46611993,0.0001276,2]
[394433526,1763568640087,-1846.46611993,0.0001276,2]
[394433528,1763568640096,-1846.46611993,0.0001276,2]
[394433530,1763568640106,-1846.4661199,0.0001276,2]
[394433532,1763568640115,-209.98228324,0.00012762,2]
[394433533,1763568640124,-500.0,0.00012763,2]
[394433535,1763568640133,-500.0,0.00012773,2]
[394433537,1763568640143,-151.0,0.000128,2]
[394433539,1763568640152,-151.0,0.000128,2]
[394433541,1763568640162,-151.0,0.000128,2]
[394433543,1763568640171,-300.0,0.00013019,2]
[394433545,1763568640181,-300.0,0.00013019,2]
[394433547,1763568640190,-300.0,0.00013019,2]
[394433549,1763568640199,-300.0,0.00013019,2]
[394433551,1763568640209,-300.0,0.00013019,2]
[394433553,1763568640218,-300.0,0.00013019,2]
[394433555,1763568640228,-300.0,0.00013019,2]
[394433557,1763568640240,-300.0,0.00013019,2]
[394433559,1763568640250,-300.0,0.00013019,2]